{"text_format":"1","workbook":"xlsx","n_sheets":2,"sheets":["HOTEL FORM","Hotel List"],"not_rendered":{"charts":0,"images":1,"macros":0,"external_links":0,"defined_names":3,"comments":0,"pivot_tables":0},"unopened":[],"bounds":{"document_bytes":16777216,"sheet_cells":100000,"rows_first":2000,"rows_last":500,"rows_between":2000,"halvings":0,"cell_chars":16384,"cell_head_chars":4096},"cells_cut":0,"cells_raw":0,"read":"whole","date_system":"1900"}

{"sheet":"HOTEL FORM","index":0,"n_rows":50,"n_cols":16,"rows_kept":50,"cut":false,"hidden":false,"merged":[[8,10,8,12],[7,3,7,4],[7,5,7,9],[4,3,4,17],[5,3,5,5],[5,6,5,17],[6,3,6,5],[6,6,6,12],[7,10,7,12],[7,13,7,17],[4,1,4,2],[5,1,7,2],[6,16,6,17],[40,1,40,2],[40,3,40,5],[40,6,40,7],[40,8,40,17],[41,1,41,17],[15,1,15,2],[16,1,16,2],[38,1,38,5],[38,6,38,8],[38,9,38,17],[39,1,39,2],[39,3,39,5],[39,6,39,7],[39,8,39,12],[39,14,39,17],[35,6,35,7],[35,8,35,17],[36,1,36,17],[37,1,37,5],[37,6,37,8],[37,9,37,17],[30,3,30,5],[30,6,30,7],[30,8,30,17],[34,3,34,5],[34,6,34,7],[34,8,34,12],[34,14,34,17],[24,8,24,12],[25,8,25,17],[24,14,24,17],[29,3,29,5],[29,6,29,7],[29,8,29,12],[29,14,29,17],[35,1,35,2],[1,3,1,17],[33,1,33,5],[33,6,33,8],[33,9,33,17],[34,1,34,2],[27,6,27,8],[27,9,27,17],[23,1,23,5],[31,1,31,17],[32,1,32,5],[32,6,32,8],[32,9,32,17],[24,3,24,5],[25,3,25,5],[30,1,30,2],[22,6,22,8],[26,1,26,17],[21,1,21,17],[27,1,27,5],[28,1,28,5],[28,6,28,8],[28,9,28,17],[29,1,29,2],[3,1,3,17],[44,2,44,8],[42,2,42,8],[35,3,35,5],[43,2,43,8],[22,1,22,5],[12,1,12,17],[49,3,49,16],[20,1,20,17],[14,1,14,17],[17,1,17,2],[23,9,23,17],[24,1,24,2],[25,1,25,2],[24,6,24,7],[25,6,25,7],[8,1,8,2],[9,1,10,2],[17,5,17,9],[22,9,22,17],[15,3,15,17],[16,3,16,17],[13,1,13,17],[17,3,17,4],[0,6,0,17],[0,1,0,2],[2,1,2,17],[48,3,48,15],[45,2,45,8],[42,12,43,16],[44,12,44,16],[11,1,11,17],[9,13,9,14],[17,10,17,12],[17,13,17,17],[47,1,47,2],[47,3,47,16],[18,1,18,17],[8,3,8,4],[9,3,9,7],[9,8,9,12],[10,8,10,12],[8,13,8,17],[9,15,9,17],[10,13,10,14],[10,15,10,17],[8,5,8,9],[23,6,23,8]]}
[null,null,null,null,null,null,"HOTEL ROOM AUTHORIZATION FORM"]
[null,null,null,"E-mail the approved form to the hotel and to the Finance Dept., payables@ssrce.ca"]
[null,"HOTEL INFORMATION"]
[null,"***Please ensure only the Hotel Room, Parking and Internet charges are direct billed"]
[null,"Name of Hotel"]
[null,"Hotel Address",null,"Street:"]
[null,null,null,"City:",null,null,null,null,null,null,null,null,null,"Prov.",null,"Postal                         Code"]
[null,null,null,"Phone:",null,null,null,null,null,null,"Fax:"]
[null,"Date of Reservation",null,"From:",null,null,null,null,null,null,"To:"]
[null,"Room Preferences",null,"Smoking",null,null,null,null,"Non-Smoking",null,null,null,null,"Hotel/Meeting Room Rate     "]
[null,null,null,"Double",null,null,"Queen",null,"Meeting Room",null,null,null,null,"Confirmation#"]
[]
[]
[null,"REASON FOR HOTEL BOOKING"]
[]
[null,"Name of Function"]
[null,"Location of Function          (if not at hotel)"]
[null,"Date of Function",null,"From:",null,null,null,null,null,null,"To:"]
[]
[]
[null,"Employee/Guest Details and Accounting Information"]
[null,"1st Employee/Guest Information"]
[null,"Employee(s)/Guest (s) Name",null,null,null,null,"Personnel Number",null,null,"Work Location/Job"]
[]
[null,"GL#",null,635400,null,null,"Fund Centre",null,null,null,null,null,null,"Internal Order#"]
[null,"Fund",null,null,null,null,"Functional Area"]
[null,"2nd Employee/Guest Information"]
[null,"Employee(s)/Guest (s) Name",null,null,null,null,"Personnel Number",null,null,"Work Location/Job"]
[]
[null,"GL#",null,635400,null,null,"Fund Centre",null,null,null,null,null,null,"Internal Order#"]
[null,"Fund",null,null,null,null,"Functional Area"]
[null,"3rd Employee/Guest Information"]
[null,"Employee(s)/Guest (s) Name",null,null,null,null,"Personnel Number",null,null,"Work Location/Job"]
[]
[null,"GL#",null,635400,null,null,"Fund Centre",null,null,null,null,null,null,"Internal Order#"]
[null,"Fund",null,null,null,null,"Functional Area"]
[null,"4th Employee/Guest Information"]
[null,"Employee(s)/Guest (s) Name",null,null,null,null,"Personnel Number",null,null,"Work Location/Job"]
[]
[null,"GL#",null,635400,null,null,"Fund Centre",null,null,null,null,null,null,"Internal Order#"]
[null,"Fund",null,null,null,null,"Functional Area"]
[]
[]
[null,null,"Signature of Supervisor"]
[null,null,null,null,null,null,null,null,null,null,null,null,"Date Approved by Supervisor"]
[null,null,"Name of Supervisor (Please print clearly)"]
[]
[null,"Billing Information:",null,"South Shore Regional Centre for Education, Attn:  Accounts Payable"]
[null,null,null,"69 Wentzell Drive, Bridgewater NS  B4V 0A2"]
[null,null,null,"Ph: 902-541-3015, Fax to e-mail: 902-527-5400, e-mail: payables@ssrce.ca"]

{"sheet":"Hotel List","index":1,"n_rows":37,"n_cols":17,"rows_kept":37,"cut":false,"hidden":false,"merged":[]}
[null,null,null,"Vendor","Name 2","Street","City","Prov","Postal Code","Email","Telephone","Fax"]
[{"$f":"CONCATENATE(E2, \" (\", D2, \")  \", F2, \", \",G2,  \" \",H2,  \" \",I2)","v":"Atlantica Hotel & Marina Oak Island (21002534)  36 Treasure Drive, Western Shore NS B0J 3M0"},"Atlantica Hotel & Marina Oak Island - Ph: 902-627-2600  Fx: 902-627-2020 ",{"$f":"CONCATENATE(E2,  \" -\",J2)","v":"Atlantica Hotel & Marina Oak Island -larry.burgoyne@atlanticaoakisland.com"},"21002534","Atlantica Hotel & Marina Oak Island","36 Treasure Drive","Western Shore","NS","B0J 3M0","larry.burgoyne@atlanticaoakisland.com","902-627-2600","902-627-2020"]
["Atlantica Hotel Halifax (21001978)  1980 Robie St, Halifax NS B3H 3G5","Atlantica Hotel Halifax - Ph: 902-423-1161  Fx:  ",{"$f":"CONCATENATE(E3,  \" -\",J3)","v":"Atlantica Hotel Halifax -kweeks@atlanticahalifax.com"},"21001978","Atlantica Hotel Halifax","1980 Robie St","Halifax","NS","B3H 3G5","kweeks@atlanticahalifax.com","902-423-1161",""]
["Bridgewater Hotel, The (21006301)  35 High St, Bridgewater NS B4V 1V8","Bridgewater Hotel, The - Ph: 902-543-8171  Fx: 902-543-7113 ",{"$f":"CONCATENATE(E4,  \" -\",J4)","v":"Bridgewater Hotel, The -"},"21006301","Bridgewater Hotel, The","35 High St","Bridgewater","NS","B4V 1V8","","902-543-8171","902-543-7113"]
["Cambridge Suites Hotel (21000850)  1583 Brunswick St, Halifax NS B3J 3P5","Cambridge Suites Hotel Halifax - Ph: 800-565-1263  Fx: 902-420-9379 ",{"$f":"CONCATENATE(E5,  \" Halifax -\",J5)","v":"Cambridge Suites Hotel Halifax -dlogan@cambridgesuiteshotel.com"},"21000850","Cambridge Suites Hotel","1583 Brunswick St","Halifax","NS","B3J 3P5","dlogan@cambridgesuiteshotel.com","800-565-1263","902-420-9379"]
["Cambridge Suites Hotel (21000852)  380 Esplanade, Sydney NS B1P 1B1","Cambridge Suites Hotel Sydney - Ph: 800-565-9466  Fx: 902-564-6011 ",{"$f":"CONCATENATE(E6,  \" Sydney -\",J6)","v":"Cambridge Suites Hotel Sydney -dmombo@cambridgesuiteshotel.com"},"21000852","Cambridge Suites Hotel","380 Esplanade","Sydney","NS","B1P 1B1","dmombo@cambridgesuiteshotel.com","800-565-9466","902-564-6011"]
["Citadel Halifax Hotel (21001129)  1960 Brunswick St, Halifax NS B3J 2G7","Citadel Halifax Hotel - Ph: 902-422-1391  Fx: 902-429-6672 ",{"$f":"CONCATENATE(E7,  \" -\",J7)","v":"Citadel Halifax Hotel -"},"21001129","Citadel Halifax Hotel","1960 Brunswick St","Halifax","NS","B3J 2G7","","902-422-1391","902-429-6672"]
["Country Inn & Suites (21016644)  700 Westville Rd, New Glasgow NS B2H 2J8","Country Inn & Suites - Ph: 902-928-1333  Fx: 902-928-1363 ",{"$f":"CONCATENATE(E8,  \" -\",J8)","v":"Country Inn & Suites -cx_newg@countryinns.com"},"21016644","Country Inn & Suites","700 Westville Rd","New Glasgow","NS","B2H 2J8","cx_newg@countryinns.com","902-928-1333","902-928-1363"]
["Goodwin Hotel (21020694)  , Weymouth NS B0W 3T0","Goodwin Hotel - Ph: 902-837-5120  Fx: 902-837-4151 ",{"$f":"CONCATENATE(E9,  \" -\",J9)","v":"Goodwin Hotel -"},"21020694","Goodwin Hotel","","Weymouth","NS","B0W 3T0",null,"902-837-5120","902-837-4151"]
["Greenwood Inn & Suites (21023529)  48 West St. Downtown, Corner Brook NL A2H 2Z2","Greenwood Inn & Suites - Ph: 709-634-5381  Fx: 709-634-1723 ",{"$f":"CONCATENATE(E10,  \" -\",J10)","v":"Greenwood Inn & Suites -wgilligham@fortisproperties.com"},"21023529","Greenwood Inn & Suites","48 West St. Downtown","Corner Brook","NL","A2H 2Z2","wgilligham@fortisproperties.com","709-634-5381","709-634-1723"]
["Hotel Gander (21031431)  100 Trans Canada Hwy, Gander NL A1V 1P5","Hotel Gander - Ph: 709-256-3931  Fx: 709-651-2641 ",{"$f":"CONCATENATE(E11,  \" -\",J11)","v":"Hotel Gander -sandra.brennan@sheratonhotelnewfoundland.com"},"21031431","Hotel Gander","100 Trans Canada Hwy","Gander","NL","A1V 1P5","sandra.brennan@sheratonhotelnewfoundland.com","709-256-3931","709-651-2641"]
["Lakeview Inn & Suites (21017625)  98 Chain Lake Dr, Halifax NS B3S 1A2","Lakeview Inn & Suites Halifax - Ph: 902-450-3020  Fx: 902-450-3021 ",{"$f":"CONCATENATE(E12,  \" Halifax -\",J12)","v":"Lakeview Inn & Suites Halifax -lakeviewhalifax@ns.aliantzinc.ca"},"21017625","Lakeview Inn & Suites","98 Chain Lake Dr","Halifax","NS","B3S 1A2","lakeviewhalifax@ns.aliantzinc.ca","902-450-3020","902-450-3021"]
["Lakeview Inn & Suites (21018415)  665 Prospect St, Fredericton NB E3B 6B8","Lakeview Inn & Suites Fredericton - Ph: 506-459-6035  Fx: 506-458-1011 ",{"$f":"CONCATENATE(E13,  \" Fredericton -\",J13)","v":"Lakeview Inn & Suites Fredericton -lakeviewhalifax@ns.aliantzinc.ca"},"21018415","Lakeview Inn & Suites","665 Prospect St","Fredericton","NB","E3B 6B8","lakeviewhalifax@ns.aliantzinc.ca","506-459-6035","506-458-1011"]
["Lord Nelson Hotel (21002300)  1515 South Park St, Halifax NS B3J 2L2","Lord Nelson Hotel - Ph: 902-423-6331  Fx:  ",{"$f":"CONCATENATE(E14,  \" -\",J14)","v":"Lord Nelson Hotel -"},"21002300","Lord Nelson Hotel","1515 South Park St","Halifax","NS","B3J 2L2","","902-423-6331",""]
["Lunenburg Arms Hotel (21022811)  94 Pelham Street, Lunenburg NS B0J 2C0","Lunenburg Arms Hotel - Ph: 902-640-4040  Fx: 902-640-4041 ","Lunenburg Arms Hotel -reservation@lunenburgarms.com","21022811","Lunenburg Arms Hotel","94 Pelham Street","Lunenburg","NS","B0J 2C0","reservation@lunenburgarms.com","902-640-4040","902-640-4041"]
["Prince George Hotel (21002655)  1725 Market St, Halifax NS B3J 3N9","Prince George Hotel - Ph: 800-5651567  Fx: 902-492-7823 ","Prince George Hotel -","21002655","Prince George Hotel","1725 Market St","Halifax","NS","B3J 3N9","","800-5651567","902-492-7823"]
["Quality Inn & Suites Halifax (21023537)  980 Parkland Drive, Halifax NS B3M 4Y7","Quality Inn & Suites Halifax - Ph: 902-444-6700  Fx: 902-444-4410 ","Quality Inn & Suites Halifax -reservations @qualityinnhalifax.com","21023537","Quality Inn & Suites Halifax","980 Parkland Drive","Halifax","NS","B3M 4Y7","reservations @qualityinnhalifax.com","902-444-6700","902-444-4410"]
["Ramada Plaza Hotel -Park Place Centre (21002701)  240 Brownlow Ave, Dartmouth NS B3B 1X6","Ramada Plaza Hotel -Park Place Centre - Ph: 902-468-8888  Fx: 902-468-8765 ","Ramada Plaza Hotel -Park Place Centre -sharrison@ramadans.com","21002701","Ramada Plaza Hotel -Park Place Centre","240 Brownlow Ave","Dartmouth","NS","B3B 1X6","sharrison@ramadans.com","902-468-8888","902-468-8765"]
["Rodd Colony Harbour Inn (21002738)  6 Forest St, Yarmouth NS B5A 3K8","Rodd Colony Harbour Inn - Ph: 902-742-9194  Fx: 902-742-6291 ","Rodd Colony Harbour Inn -","21002738","Rodd Colony Harbour Inn","6 Forest St","Yarmouth","NS","B5A 3K8","","902-742-9194","902-742-6291"]
["Rodd Grand Hotel (21002739)  417 Main Street, Yarmouth NS B5A 4B2","Rodd Grand Hotel - Ph: 902-742-2446  Fx:  ","Rodd Grand Hotel -","21002739","Rodd Grand Hotel","417 Main Street","Yarmouth","NS","B5A 4B2","","902-742-2446",""]
["Rodd Royalty Inn (21020473)  , Charlottetown PE C1A 8C2","Rodd Royalty Inn - Ph: 902-894-8566  Fx: 902-892-8488 ","Rodd Royalty Inn -","21020473","Rodd Royalty Inn","","Charlottetown","PE","C1A 8C2","","902-894-8566","902-892-8488"]
["Sheraton Hotel Newfoundland (21030127)  115 Cavendish Square, St. John'S NF A1C 3K2","Sheraton Hotel Newfoundland - Ph: 709-726-4980  Fx: 709-726-2025 ","Sheraton Hotel Newfoundland -sandra.brennan@sheratonhotelnewfoundland.com","21030127","Sheraton Hotel Newfoundland","115 Cavendish Square","St. John'S","NF","A1C 3K2","sandra.brennan@sheratonhotelnewfoundland.com","709-726-4980","709-726-2025"]
["Travelodge Suites (21032263)  2475 Mountain Road, Moncton NB E1G 2J5","Travelodge Suites - Ph: 506-852-7000  Fx: 506-852-7008 ","Travelodge Suites -fomtravelodgemonc@gmail.com","21032263","Travelodge Suites","2475 Mountain Road","Moncton","NB","E1G 2J5","fomtravelodgemonc@gmail.com","506-852-7000","506-852-7008"]
[]
[{"$f":"CONCATENATE(E25, \" (\", D25, \")  \", F25, \", \",G25,  \" \",H25,  \" \",I26)","v":"Best Western Dartmouth Inn (21027974)  15 Spectacle Lake Drive, Dartmouth NS B2N 4Z6"},{"$f":"CONCATENATE(E25,  \" - Ph: \",K25, \" Fx: \", L25)","v":"Best Western Dartmouth Inn - Ph: 902-463-2000 Fx: "},{"$f":"CONCATENATE(E25,  \" -\",J25)","v":"Best Western Dartmouth Inn -reservations@bestwesterndartmouth.com"},"21027974","Best Western Dartmouth Inn","15 Spectacle Lake Drive","Dartmouth","NS","B3B 1X7","reservations@bestwesterndartmouth.com","902-463-2000","","","","","",""]
["Best Western Glengarry (21000689)  150 Willow St, Truro NS B0T 1K0",{"$f":"CONCATENATE(E26,  \" - Ph: \",K26, \" Fx: \", L26)","v":"Best Western Glengarry - Ph: 902-893-4311 Fx: 902-893-1759"},null,"21000689","Best Western Glengarry","150 Willow St","Truro","NS","B2N 4Z6",null,"902-893-4311","902-893-1759","","","","",""]
["Best Western Liverpool Hotel (21030178)  63 Queens Place Drive, Liverpool NS B5A 1J2","Best Western Liverpool Hotel - Ph: 902-354-2377 Fx: ","Best Western Liverpool Hotel -melissa.robinson@bwliverpool.ca","21030178","Best Western Liverpool Hotel","63 Queens Place Drive","Liverpool","NS","B0T 1K0","melissa.robinson@bwliverpool.ca","902-354-2377","",null,"","","",""]
["Best Western Mermaid Motel (21000690)  545 Main St, Yarmouth NS B4V 7P4","Best Western Mermaid Motel - Ph: 800-528-1234 Fx: ",null,"21000690","Best Western Mermaid Motel","545 Main St","Yarmouth","NS","B5A 1J2","","800-528-1234","",null,null,"","",""]
["Best Western Plus (21030546)  527 Highway 10, Cookville NS B3J 3L6",{"$f":"CONCATENATE(E29,  \" Bridgewater - Ph: \",K29, \" Fx: \", L29)","v":"Best Western Plus Bridgewater - Ph: 902-530-0101 Fx: 902-530-6001"},"Best Western Plus -mparnell@bestwesternbridgewater.com","21030546","Best Western Plus","527 Highway 10","Cookville","NS","B4V 7P4","mparnell@bestwesternbridgewater.com","902-530-0101","902-530-6001",null,null,null,"",""]
["Delta Barrington (21001389)  1875 Barrington St, Halifax NS B3J 1P2","Delta Barrington - Ph: 902-429-7410 Fx: 902-420-6524","Delta Barrington -steatkinson@deltahotels.com","21001389","Delta Barrington","1875 Barrington St","Halifax","NS","B3J 3L6","steatkinson@deltahotels.com","902-429-7410","902-420-6524",null,null,"","",""]
["Delta Halifax (21001397)  1990 Barrington St, Halifax NS A1C 6K4","Delta Halifax - Ph: 902-425-6700 Fx: 902-425-6214","Delta Halifax -kmacdonald@deltahotels.com","21001397","Delta Halifax","1990 Barrington St","Halifax","NS","B3J 1P2","kmacdonald@deltahotels.com","902-425-6700","902-425-6214",null,null,"","",""]
["Delta St. John'S (21016681)  120 New Gower St, St John'S NL B1P 1A7","Delta St. John'S - Ph: 709-739-6404 Fx: 709-570-1622",null,"21016681","Delta St. John'S","120 New Gower St","St John'S","NL","A1C 6K4","","709-739-6404","709-570-1622",null,null,"","",""]
["Delta Sydney (21001401)  300 Esplanade, Sydney NS R3C 3J2","Delta Sydney - Ph: 902-562-7500 Fx: 902-562-3023",null,"21001401","Delta Sydney","300 Esplanade","Sydney","NS","B1P 1A7","","902-562-7500","902-562-3023",null,null,"","",""]
["Delta Winnipeg (21019178)  350 St Mary Ave, Winnipeg MB B3J 3J5","Delta Winnipeg - Ph: 204-942-0551 Fx: 204-943-4327",null,"21019178","Delta Winnipeg","350 St Mary Ave","Winnipeg","MB","R3C 3J2","","204-942-0551","204-943-4327","",null,"","",""]
["Marriott Halifax Harbourfront (21002826)  1919 Upper Water St, Halifax NS B3M 4Y7","Marriott Halifax Harbourfront - Ph: 902-421-1700 Fx: 902-492-7054",null,"21002826","Marriott Halifax Harbourfront","1919 Upper Water St","Halifax","NS","B3J 3J5","","902-421-1700","902-492-7054","",null,"","",""]
["Quality Inn & Suites Halifax (21023537)  980 Parkland Drive, Halifax NS B3H 2P6","Quality Inn & Suites Halifax - Ph: 902-444-6700 Fx: 902-444-4410","Quality Inn & Suites Halifax -reservations @qualityinnhalifax.com","21023537","Quality Inn & Suites Halifax","980 Parkland Drive","Halifax","NS","B3M 4Y7","reservations @qualityinnhalifax.com","902-444-6700","902-444-4410","",null,"","",""]
["Westin Nova Scotian (21002060)  1181 Hollis Street, Halifax NS ",{"$f":"CONCATENATE(E37,  \" - Ph: \",K37, \" Fx: \", L37)","v":"Westin Nova Scotian - Ph: 902-421-1000 Fx: 902-422-9465"},"Westin Nova Scotian -hrichard@westin.ns.ca","21002060","Westin Nova Scotian","1181 Hollis Street","Halifax","NS","B3H 2P6","hrichard@westin.ns.ca","902-421-1000","902-422-9465",null,null,"","",""]